bitfinex/quotes_SOLUSD_20250717
["timestamp","ask_amount","ask_price","bid_price","bid_amount"]
[1752789607043,10.96339415,175.69,175.68,8.47775181]
[1752789608151,10.96339415,175.69,175.67,8.47775181]
[1752789608345,0.06,175.69,175.68,8.47775181]
[1752789608558,16.65531176,175.69,175.68,8.47775181]
[1752789608736,17.37531176,175.69,175.67,8.47775181]
[1752789608943,30.84,175.68,175.65,1e-08]
[1752789609333,0.72,175.67,175.65,1e-08]
[1752789609582,30.12,175.66,175.65,1e-08]
[1752789609751,41.02339415,175.66,175.65,1e-08]
[1752789610058,26.0,175.63,175.57,8.50775181]
[1752789610364,10.90339415,175.58,175.57,0.03]
[1752789610535,16.59880364,175.58,175.57,0.03]
[1752789610735,30.12,175.58,175.57,0.03]
[1752789611030,46.71880364,175.58,175.57,0.03]
[1752789611541,47.43880364,175.58,175.57,0.03]
[1752789612141,72.58072153,175.58,175.52,8.47775181]
[1752789612358,10.90339415,175.53,175.5,0.1]
[1752789612667,10.90339415,175.51,175.5,0.1]
[1752789613266,11.62339415,175.51,175.5,0.1]
[1752789613661,17.32107519,175.51,175.5,0.1]
[1752789614252,34.10575916,175.51,175.5,0.1]
[1752789614458,34.10575916,175.51,175.49,0.03]
[1752789614768,67.74339415,175.5,175.49,0.03]
[1752789614968,37.62339415,175.5,175.49,0.03]
[1752789615162,67.74339415,175.5,175.49,0.03]
[1752789615378,56.84,175.5,175.49,0.03]
[1752789615681,1.52224819,175.57,175.49,0.03]
[1752789615682,10.90339415,175.52,175.49,0.03]
[1752789615841,41.02339415,175.54,175.52,8.47775181]
[1752789616037,10.90339415,175.55,175.53,8.47775181]
[1752789616241,10.90339415,175.55,175.49,11.62339415]
[1752789616242,10.90339415,175.55,175.54,8.47775181]
[1752789616440,10.90339415,175.57,175.54,8.47775181]
[1752789616663,30.12,175.58,175.57,8.47775181]
[1752789616851,71.02339415,175.58,175.57,8.47775181]
[1752789617052,5.69573389,175.57,175.56,8.47775181]
[1752789617245,46.71912804,175.57,175.55,8.47775181]
[1752789617444,11.62339415,175.56,175.52,8.47775181]
[1752789617643,10.90339415,175.53,175.5,0.03]
[1752789617866,10.90339415,175.51,175.5,0.03]
[1752789618244,11.62339415,175.51,175.5,0.03]
[1752789618638,10.90339415,175.51,175.5,8.50775181]
[1752789618841,10.90339415,175.52,175.5,8.50775181]
[1752789619068,30.12,175.53,175.52,8.47775181]
[1752789619268,40.89933473,175.57,175.53,8.47775181]
[1752789619269,5.69677563,175.54,175.53,8.47775181]
[1752789619572,22.15711014,175.54,175.53,8.47775181]
[1752789620070,22.81711014,175.54,175.51,8.47775181]
[1752789620373,22.81711014,175.54,175.5,0.03]
[1752789620374,16.46033451,175.52,175.5,0.03]
[1752789620549,46.58033451,175.51,175.5,0.03]
[1752789620750,47.24033451,175.51,175.5,0.03]
[1752789621075,31.69800569,175.5,175.49,1e-08]
[1752789621249,26.0,175.49,175.48,1e-08]
[1752789621449,47.24033451,175.49,175.47,1e-08]
[1752789621763,17.12033451,175.48,175.47,1e-08]
[1752789622080,30.12,175.48,175.47,1e-08]
[1752789622370,22.1583402,175.5,175.47,8.47775182]
[1752789622557,61.81740989,175.52,175.49,8.47775181]
[1752789622739,35.81740989,175.52,175.49,8.47775181]
[1752789622947,35.81740989,175.52,175.51,8.47775181]
[1752789623468,52.2777444,175.52,175.51,8.47775181]
[1752789623667,52.2777444,175.52,175.48,8.47775181]
[1752789623668,52.9377444,175.52,175.48,8.47775181]
[1752789623871,16.46033451,175.49,175.47,1e-08]
[1752789624051,46.58033451,175.48,175.47,1e-08]
[1752789624245,47.24033451,175.48,175.47,1e-08]
[1752789624699,0.66,175.51,175.47,1e-08]
[1752789624871,30.12,175.5,175.47,8.47775182]
[1752789625053,16.46033451,175.51,175.49,8.47775181]
[1752789625371,22.15802901,175.51,175.49,8.47775181]
[1752789625558,22.15802901,175.51,175.5,8.47775181]
[1752789625864,52.27802901,175.51,175.5,8.47775181]
[1752789627255,30.12,175.51,175.5,8.47775181]
[1752789627454,14.2412245,175.55,175.47,16.46033452]
[1752789627455,26.0,175.55,175.52,8.47775181]
[1752789627648,30.12,175.54,175.52,8.47775181]
[1752789627849,46.58033451,175.54,175.52,8.47775181]
[1752789628983,16.46033451,175.53,175.52,8.47775181]
[1752789629155,16.46033451,175.53,175.47,16.46033452]
[1752789629156,17.12033451,175.53,175.51,8.47775181]
[1752789629356,6.35703184,175.53,175.52,8.47775181]
[1752789629653,52.93736635,175.53,175.52,8.47775181]
[1752789630162,52.93736635,175.53,175.5,8.47775181]
[1752789630362,36.47703184,175.53,175.5,8.47775181]
[1752789630562,36.47703184,175.53,175.52,8.47775181]
[1752789630767,52.93736635,175.53,175.5,8.47775181]
[1752789631073,16.46033451,175.51,175.48,8.47775181]
[1752789631269,22.15866489,175.49,175.47,8.47775182]
[1752789631572,5.69833038,175.49,175.47,8.47775182]
[1752789631872,22.15769093,175.52,175.51,8.47775181]
[1752789632196,52.27769093,175.52,175.51,8.47775181]
[1752789632364,52.27769093,175.52,175.5,8.47775181]
[1752789632569,17.12033451,175.51,175.49,8.47775181]
[1752789632754,47.24033451,175.5,175.47,8.47775182]
[1752789632954,16.46033451,175.48,175.47,8.47775182]
[1752789633162,16.46033451,175.48,175.47,1e-08]
[1752789633163,46.58033451,175.48,175.47,1e-08]
[1752789633365,52.93898962,175.48,175.47,1e-08]
[1752789633952,52.93898962,175.48,175.47,8.47775182]
[1752789634163,22.81898962,175.48,175.47,8.47775182]
[1752789634352,22.15898962,175.48,175.47,8.47775182]
[1752789634554,52.27898962,175.48,175.47,8.47775182]
[1752789634775,52.27898962,175.48,175.47,1e-08]
[1752789634971,22.81898962,175.48,175.47,1e-08]
[1752789635171,52.93898962,175.48,175.47,1e-08]
[1752789635369,22.81898962,175.48,175.47,1e-08]
[1752789635571,35.81865511,175.48,175.47,1e-08]
[1752789635880,30.12,175.48,175.47,8.47775182]
[1752789636050,35.81865511,175.48,175.47,8.47775182]
[1752789636253,52.27898962,175.48,175.47,8.47775182]
[1752789637384,52.27898962,175.48,175.47,1e-08]
[1752789637385,52.93898962,175.48,175.47,1e-08]
[1752789639078,47.3965408,175.48,175.47,1e-08]
[1752789639283,26.0,175.45,175.42,0.03]
[1752789639476,10.91788569,175.43,175.42,0.03]
[1752789640075,11.57788569,175.43,175.42,0.03]
[1752789640474,10.91788569,175.43,175.42,8.50775181]
[1752789640680,41.03788569,175.44,175.42,8.50775181]
[1752789640882,41.03788569,175.44,175.43,8.47775181]
[1752789641484,5.69971401,175.45,175.43,8.47775181]
[1752789641791,41.03788569,175.44,175.43,8.47775181]
[1752789642080,41.69788569,175.44,175.42,8.50775181]
[1752789642276,10.91788569,175.43,175.42,8.50775181]
[1752789642784,11.57788569,175.43,175.42,8.50775181]
[1752789642985,11.57788569,175.43,175.42,0.03]
[1752789643367,17.278165,175.43,175.42,0.03]
[1752789643575,17.278165,175.43,175.42,8.50775181]
[1752789644078,35.8200748,175.44,175.42,8.50775181]
[1752789644281,35.8200748,175.44,175.43,8.47775181]
[1752789644282,5.7000748,175.44,175.43,8.47775181]
[1752789644483,46.73796049,175.44,175.43,8.47775181]
[1752789645286,16.61796049,175.44,175.43,8.47775181]
[1752789645489,46.73796049,175.44,175.42,8.50775181]
[1752789645677,10.91788569,175.43,175.42,8.50775181]
[1752789646891,35.8200748,175.44,175.43,8.47775181]
[1752789647087,46.73796049,175.44,175.43,8.47775181]
[1752789647320,5.69768104,175.51,175.43,20.0856375]
[1752789647591,10.91788569,175.48,175.47,8.47775181]
[1752789647897,41.03788569,175.48,175.47,8.47775181]
[1752789648084,41.03788569,175.48,175.46,8.47775181]
[1752789648293,41.03788569,175.48,175.47,8.47775181]
[1752789648486,41.69788569,175.48,175.47,8.47775181]
[1752789648996,30.78,175.48,175.47,8.47775181]
[1752789649214,41.69788569,175.48,175.47,8.47775181]
[1752789649568,46.7365408,175.48,175.47,8.47775181]
[1752789650602,5.69825454,175.5,175.47,8.47775181]
[1752789650773,30.12,175.49,175.48,8.47775181]
[1752789650969,41.75788569,175.49,175.47,8.47775181]
[1752789651170,41.75788569,175.49,175.39,0.03]
[1752789651171,11.63788569,175.48,175.42,8.50775181]
[1752789651405,30.48,175.47,175.43,8.47775181]
[1752789651576,5.69871179,175.48,175.44,8.47775181]
[1752789651771,30.5,175.47,175.46,8.47775181]
[1752789652382,41.41788569,175.47,175.46,8.47775181]
[1752789652578,11.63788569,175.47,175.46,8.47775181]
[1752789652778,42.15788569,175.47,175.43,8.47775181]
[1752789653101,10.91788569,175.44,175.42,8.50775181]
[1752789653394,10.91788569,175.43,175.42,8.50775181]
[1752789653702,16.618165,175.43,175.42,8.50775181]
[1752789654776,16.618165,175.43,175.42,0.03]
[1752789655203,16.618165,175.43,175.42,8.50775181]
[1752789655390,17.338165,175.43,175.42,0.03]
[1752789656089,17.338165,175.43,175.42,8.50775181]
[1752789656291,17.338165,175.43,175.42,0.03]
[1752789656499,17.338165,175.43,175.42,8.50775181]
[1752789657016,17.338165,175.43,175.42,0.03]
[1752789657795,17.338165,175.43,175.42,8.50775181]
[1752789658107,47.818165,175.43,175.42,8.50775181]
[1752789658605,47.098165,175.43,175.42,8.50775181]
[1752789658991,47.098165,175.43,175.42,0.03]
[1752789659195,47.098165,175.43,175.42,8.50775181]
[1752789660579,5.69897988,175.47,175.42,9.17775181]
[1752789660905,5.69897988,175.47,175.46,8.47775181]
[1752789660906,10.91788569,175.47,175.46,8.47775181]
[1752789661100,41.37788569,175.47,175.46,8.47775181]
[1752789661483,30.46,175.47,175.46,8.47775181]
[1752789661790,30.46,175.47,175.43,0.67]
[1752789661791,10.91788569,175.49,175.48,8.47775181]
[1752789661989,41.35788569,175.49,175.48,8.47775181]
[1752789662707,10.91788569,175.51,175.5,8.47775181]
[1752789662884,30.0,175.51,175.5,8.47775181]
[1752789663706,30.0,175.51,175.5,9.14775181]
[1752789663895,30.0,175.51,175.5,20.0656375]
[1752789664086,0.06,175.52,175.51,8.47775181]
[1752789664289,0.06,175.52,175.51,36.85032147]
[1752789664496,0.06,175.52,175.51,42.54800251]
[1752789664692,0.06,175.56,175.55,8.47775181]
[1752789664899,0.06,175.56,175.55,19.3956375]
[1752789665097,0.06,175.56,175.55,36.85032147]
[1752789665423,0.06,175.56,175.55,37.41995974]
[1752789665585,0.06,175.56,175.55,40.32863572]
[1752789665790,0.06,175.6,175.55,40.32863572]
[1752789665791,0.06,175.6,175.59,51.26243578]
[1752789666001,0.06,175.6,175.59,62.18032147]
[1752789666310,0.06,175.6,175.59,62.85032147]
[1752789666509,0.06,175.6,175.59,57.62752092]
[1752789666720,0.06,175.6,175.59,8.47775181]
[1752789667305,42.11788569,175.6,175.56,8.47775181]
[1752789667525,10.91788569,175.57,175.56,8.47775181]
[1752789667811,42.09788569,175.57,175.56,8.47775181]
[1752789668107,42.09788569,175.57,175.55,8.47775181]
[1752789668309,11.63788569,175.56,175.54,8.47775181]
[1752789668512,11.63788569,175.55,175.53,8.47775181]
[1752789668701,10.91788569,175.54,175.53,8.47775181]
[1752789668903,5.69626271,175.56,175.53,8.47775181]
[1752789669105,36.15575417,175.57,175.55,8.47775181]
[1752789669295,11.63788569,175.56,175.54,8.47775181]
[1752789669497,10.91788569,175.55,175.54,8.47775181]
[1752789669894,10.91788569,175.56,175.54,8.47775181]
[1752789670100,10.91788569,175.57,175.56,8.47775181]
[1752789670294,30.42,175.57,175.56,8.47775181]
[1752789670499,10.91788569,175.58,175.57,8.47775181]
[1752789670718,41.33788569,175.58,175.57,8.47775181]
[1752789671023,10.97788569,175.6,175.58,8.47775181]
[1752789671193,10.97788569,175.6,175.59,8.47775181]
[1752789671400,41.39788569,175.6,175.59,8.47775181]
[1752789671812,30.48,175.6,175.59,8.47775181]
[1752789672302,0.06,175.6,175.59,8.47775181]
[1752789672510,0.06,175.6,175.59,9.14775181]
[1752789672915,0.06,175.6,175.59,8.47775181]
[1752789673103,10.97788569,175.6,175.59,8.47775181]
[1752789673309,11.69788569,175.6,175.58,8.47775181]
[1752789673612,42.05788569,175.59,175.56,8.47775181]
[1752789673823,10.91788569,175.57,175.54,8.47775181]
[1752789673998,10.91788569,175.55,175.54,8.47775181]
[1752789674505,42.05788569,175.56,175.54,8.47775181]
[1752789674703,11.63788569,175.55,175.52,9.14775181]
[1752789674900,10.91788569,175.53,175.52,0.67]
[1752789675101,41.35788569,175.53,175.51,8.47775181]
[1752789675405,41.35788569,175.53,175.52,8.47775181]
[1752789675917,30.44,175.53,175.52,8.47775181]
[1752789677309,47.05491753,175.53,175.52,8.47775181]
[1752789678396,10.91788569,175.54,175.52,8.47775181]
[1752789678598,0.06,175.6,175.58,8.47775181]
[1752789678819,0.06,175.6,175.59,8.47775181]
[1752789680211,11.64788569,175.6,175.59,8.47775181]
[1752789680720,0.06,175.6,175.59,8.47775181]
[1752789682324,0.06,175.6,175.59,9.12775181]
[1752789682623,30.42,175.6,175.59,14.82283695]
[1752789682928,0.06,175.6,175.59,25.74072264]
[1752789685023,0.06,175.6,175.59,8.47775181]
[1752789692735,0.06,175.6,175.59,41.87540661]
[1752789692918,0.06,175.64,175.63,36.18032147]
[1752789693113,0.06,175.64,175.63,62.18032147]
[1752789693338,0.06,175.64,175.63,62.83032147]
[1752789693829,0.2,175.7,175.68,19.3956375]
[1752789694034,0.2,175.7,175.68,8.47775181]
[1752789695037,0.2,175.7,175.68,25.71780507]
[1752789695736,0.2,175.7,175.68,68.50248904]
[1752789698835,0.2,175.7,175.68,69.07170579]
[1752789699023,1e-08,175.69,175.68,90.23459148]
[1752789699223,0.06,175.74,175.73,8.47775181]
[1752789699421,0.06,175.74,175.73,19.96469229]
[1752789699779,0.06,175.74,175.73,37.37937626]
[1752789699931,0.06,175.74,175.73,26.46149057]
[1752789700127,0.06,175.74,175.73,37.37937626]
[1752789701138,0.06,175.74,175.73,43.06992425]
[1752789701139,1e-08,175.74,175.73,43.06992425]
[1752789701542,1e-08,175.8,175.76,26.0]
[1752789701839,1e-08,175.8,175.79,19.3956375]
[1752789702228,1e-08,175.8,175.79,20.0256375]
[1752789702926,1e-08,175.8,175.79,36.81032147]
[1752789703127,1e-08,175.8,175.79,43.06778776]
[1752789703642,0.06,175.83,175.82,51.26243578]
[1752789703843,0.06,175.83,175.82,93.06908497]
[1752789704031,0.06,175.83,175.82,93.69908497]
[1752789704942,0.06,175.83,175.82,45.964401]
[1752789705141,0.06,175.83,175.82,45.3956375]
[1752789705764,0.06,175.83,175.82,46.0256375]
[1752789706052,0.06,175.83,175.82,68.49795655]
[1752789707325,0.06,175.83,175.82,45.3956375]
[1752789708232,0.06,175.83,175.82,51.08327258]
[1752789708548,0.06,175.83,175.82,51.71327258]
[1752789708844,0.06,175.83,175.82,68.49795655]
[1752789711467,0.06,175.83,175.82,98.81795655]
[1752789716868,0.2,175.86,175.83,25.26243578]
[1752789717068,0.2,175.86,175.85,19.3956375]
[1752789717453,0.2,175.86,175.85,20.0256375]
[1752789717966,0.2,175.86,175.85,25.71230227]
[1752789718370,0.06,175.9,175.89,51.26243578]
[1752789718670,0.06,175.9,175.89,92.98885862]
[1752789718846,0.06,175.9,175.89,93.61885862]
[1752789718847,1e-08,175.9,175.89,93.61885862]
[1752789719670,1e-08,175.9,175.89,93.63885862]
[1752789720045,1e-08,175.9,175.89,88.40634446]
[1752789720371,1e-08,175.9,175.89,99.32423015]
[1752789720545,1e-08,175.9,175.89,57.51634446]
[1752789720748,1e-08,175.9,175.89,98.105693]
[1752789721159,1e-08,175.9,175.89,99.30423015]
[1752789722567,0.2,175.92,175.89,99.30423015]
[1752789722870,0.2,175.92,175.9,25.89243578]
[1752789723050,0.2,175.92,175.9,8.47775181]
[1752789723659,0.2,175.92,175.9,36.7488263]
[1752789724072,0.2,175.92,175.9,31.51598893]
[1752789724371,0.74,175.91,175.9,8.47775181]
[1752789724579,0.74,175.91,175.9,19.3956375]
[1752789725371,0.74,175.91,175.9,25.08068582]
[1752789725551,0.06,175.91,175.9,25.08068582]
[1752789725757,0.06,175.91,175.9,42.43387462]
[1752789726273,0.2,175.92,175.91,25.26243578]
[1752789726468,0.2,175.98,175.97,34.47775181]
[1752789726766,0.2,175.98,175.97,45.3956375]
[1752789727349,0.2,175.98,175.97,92.46032147]
[1752789728058,0.2,175.98,175.97,98.1431083]
[1752789728682,0.2,175.98,175.97,98.7731083]
[1752789729271,0.2,175.98,175.97,90.68410981]
[1752789729449,0.2,175.98,175.97,101.6019955]
[1752789730075,0.2,175.98,175.97,90.68410981]
[1752789730373,0.2,175.98,175.97,101.6019955]
[1752789730577,1e-08,175.98,175.97,101.6019955]
[1752789730962,1e-08,175.99,175.98,25.26243578]
[1752789731161,0.78,176.09,176.07,8.47775181]
[1752789731469,0.78,176.09,176.07,19.3956375]
[1752789731972,0.74,176.08,176.07,8.47775181]
[1752789735076,0.06,176.08,176.07,66.23143988]
[1752789735281,0.06,176.08,176.07,41.4293958]
[1752789735486,0.06,176.16,176.12,16.78468397]
[1752789735686,0.06,176.16,176.15,17.76719665]
[1752789735856,0.74,176.16,176.15,17.76719665]
[1752789736061,0.06,176.16,176.15,34.55188062]
[1752789736262,0.06,176.16,176.15,40.79655844]
[1752789736458,0.06,176.16,176.15,31.5071136]
[1752789736665,0.06,176.16,176.15,34.55188062]
[1752789736964,0.06,176.16,176.15,40.79655844]
[1752789737362,0.06,176.16,176.15,35.1195786]
[1752789737570,0.74,176.16,176.15,35.1195786]
[1752789738381,0.74,176.16,176.15,40.79655844]
[1752789739381,0.06,176.16,176.15,40.79655844]
[1752789740059,0.06,176.16,176.15,31.5071136]
[1752789740265,0.06,176.16,176.15,35.1195786]
[1752789740484,0.06,176.16,176.15,40.79655844]
[1752789741867,0.06,176.16,176.15,35.1195786]
[1752789742382,0.06,176.16,176.15,25.83013376]
[1752789742585,0.06,176.16,176.15,35.1195786]
[1752789742968,0.78,176.16,176.15,9.04544979]
[1752789743166,0.78,176.16,176.15,8.47775181]
[1752789743466,10.06944484,176.16,176.14,8.47775181]
[1752789743677,10.00944484,176.15,176.13,8.47775181]
[1752789743877,0.72,176.14,176.12,8.47775181]
[1752789744074,0.72,176.14,176.13,8.47775181]
[1752789744273,10.00944484,176.14,176.13,8.47775181]
[1752789744474,21.80464698,176.14,176.11,8.47775181]
[1752789744698,0.72,176.13,176.12,8.47775181]
[1752789745569,0.72,176.13,176.11,8.47775181]
[1752789745780,11.79536137,176.14,176.11,8.47775181]
[1752789746073,11.79536137,176.14,176.13,8.47775181]
[1752789746074,6.1179,176.14,176.13,8.47775181]
[1752789746275,11.79520214,176.14,176.13,8.47775181]
[1752789746476,6.8379,176.14,176.13,8.47775181]
[1752789748992,12.51520214,176.14,176.13,8.47775181]
[1752789749195,23.46904698,176.14,176.11,8.47775181]
[1752789749398,9.28944484,176.12,176.09,8.50775181]
[1752789749776,0.72,176.11,176.09,8.50775181]
[1752789750488,9.28944484,176.13,176.1,8.47775181]
[1752789750991,0.72,176.12,176.11,8.47775181]
[1752789751382,0.72,176.12,176.1,8.47775181]
[1752789751706,13.45960214,176.14,176.1,8.47775181]
[1752789751997,22.74904698,176.14,176.12,8.47775181]
[1752789752196,0.06,176.16,176.12,8.47775181]
[1752789752197,15.02619887,176.16,176.12,8.47775181]
[1752789752487,0.72,176.15,176.13,8.47775181]
[1752789752684,5.73675403,176.16,176.14,8.47775181]
[1752789752685,0.06,176.16,176.14,8.47775181]
[1752789752887,0.06,176.16,176.15,8.47775181]
[1752789753995,0.78,176.16,176.15,8.47775181]
[1752789754808,15.74610242,176.16,176.15,8.47775181]
[1752789754974,29.93774638,176.16,176.1,8.47775181]
[1752789755179,9.28944484,176.11,176.09,0.03]
[1752789755376,9.28944484,176.06,176.04,8.47775181]
[1752789755680,0.72,176.08,176.06,8.47775181]
[1752789755887,6.5108,176.1,176.05,9.28944484]
[1752789755888,0.72,176.1,176.09,8.47775181]
[1752789756295,10.00944484,176.1,176.04,8.47775181]
[1752789756479,10.00944484,176.1,176.01,8.50775181]
[1752789756480,17.15734484,176.05,176.01,8.50775181]
[1752789756679,17.15734484,176.05,176.02,8.47775181]
[1752789756680,10.00944484,176.04,176.02,8.47775181]
[1752789756902,0.72,176.07,176.04,8.47775181]
[1752789757084,15.50764484,176.09,176.04,8.47775181]
[1752789757085,0.72,176.06,176.04,8.47775181]
[1752789757486,5.67850359,176.11,176.05,18.33521709]
[1752789757683,0.72,176.1,176.06,8.47775181]
[1752789757901,9.28944484,176.08,176.06,8.47775181]
[1752789758109,10.00944484,176.07,176.05,8.47775181]
[1752789758404,0.72,176.06,176.05,8.47775181]
[1752789758805,0.72,176.1,176.07,8.47775181]
[1752789758997,0.72,176.09,176.07,8.47775181]
[1752789759506,9.28944484,176.1,176.05,8.47775181]
[1752789759690,9.28944484,176.07,176.04,8.47775181]
[1752789759893,9.28944484,176.05,176.03,8.47775181]
[1752789760084,10.00944484,176.04,176.01,0.03]
[1752789760284,9.28944484,176.03,176.01,0.03]
[1752789760492,9.28944484,176.02,176.01,0.03]
[1752789760715,5.68149536,176.01,175.96,8.47775181]
[1752789760909,5.68149536,176.01,175.92,5.68439807]
[1752789760910,9.28944484,175.98,175.95,8.47775181]
[1752789761097,9.28944484,175.97,175.95,8.47775181]
[1752789761284,0.72,175.96,175.95,8.47775181]
[1752789761602,0.72,175.96,175.93,8.47775181]
[1752789761822,0.72,175.95,175.92,8.47775181]
[1752789761984,0.72,175.95,175.93,8.47775181]
[1752789761985,9.28944484,175.94,175.93,8.47775181]
[1752789762315,0.72,175.94,175.93,8.47775181]
[1752789762611,10.00944484,175.94,175.92,8.47775181]
[1752789762784,5.684402,175.92,175.91,8.47775181]
[1752789762990,15.69384684,175.92,175.88,8.47775181]
[1752789763189,10.00944484,175.91,175.88,8.47775181]
[1752789763484,9.28944484,175.9,175.88,8.47775181]
[1752789763686,1.5807,175.93,175.89,8.47775181]
[1752789763886,41.44784484,175.96,175.91,8.47775181]
[1752789764203,0.72,175.96,175.93,9.28944484]
[1752789764406,14.97224599,175.97,175.95,8.47775181]
[1752789764704,1.5807,175.98,175.93,8.47775181]
[1752789764705,9.28944484,175.96,175.93,8.47775181]
[1752789765005,0.72,175.98,175.97,8.47775181]
[1752789765207,11.84049344,176.0,175.97,8.47775181]
[1752789765208,12.56049344,176.0,175.97,8.47775181]
[1752789765505,0.72,175.98,175.97,8.47775181]
[1752789765697,6.8784,176.0,175.98,8.47775181]
[1752789766007,0.72,176.04,176.02,8.47775181]
[1752789766188,0.72,176.03,176.01,8.47775181]
[1752789766397,0.72,176.03,176.0,8.47775181]
[1752789766705,14.96993332,176.05,176.02,8.47775181]
[1752789766907,5.68048848,176.05,176.02,8.47775181]
[1752789767086,0.72,176.04,176.02,8.47775181]
[1752789767486,0.72,176.03,176.01,8.47775181]
[1752789767695,5.68048848,176.05,176.03,8.47775181]
[1752789768119,0.72,176.04,176.03,8.47775181]
[1752789768407,0.72,176.05,176.03,8.47775181]
[1752789768605,30.28,176.06,176.05,8.47775181]
[1752789768809,36.67988185,176.06,176.05,8.47775181]
[1752789769306,45.96932669,176.06,176.03,8.47775181]
[1752789769509,0.68,176.05,176.03,8.47775181]
[1752789769699,14.19602456,176.11,176.05,8.47775181]
[1752789769887,30.28,176.09,176.06,8.47775181]
[1752789770088,35.95891419,176.09,176.06,8.47775181]
[1752789770299,0.68,176.08,176.06,8.47775181]
[1752789770503,30.28,176.09,176.07,8.47775181]
[1752789770701,6.35841317,176.11,176.08,17.76719665]
[1752789770902,9.28944484,176.09,176.07,8.47775181]
[1752789771105,9.96944484,176.08,176.06,8.47775181]
[1752789771308,5.67955926,176.07,176.06,8.47775181]
[1752789771501,6.35955926,176.07,176.06,8.47775181]
[1752789772200,0.68,176.15,176.07,8.47775181]
[1752789772401,9.28944484,176.14,176.12,8.47775181]
[1752789772610,9.96944484,176.13,176.09,8.47775181]
[1752789772907,9.28944484,176.11,176.08,8.47775181]
[1752789773114,9.96944484,176.1,176.06,8.47775181]
[1752789773292,6.35891419,176.09,176.06,8.47775181]
[1752789773613,6.35891419,176.09,176.08,8.47775181]
[1752789773819,30.24,176.12,176.08,17.76719665]
[1752789774017,0.68,176.11,176.1,8.47775181]
[1752789774389,0.68,176.11,176.03,16.78468397]
[1752789774390,0.68,176.11,176.09,8.47775181]
[1752789774720,35.9179742,176.12,176.08,9.28944484]
[1752789774721,30.24,176.12,176.11,8.47775181]
[1752789774887,35.89697984,176.15,176.12,8.47775181]
[1752789775106,36.57697984,176.15,176.12,8.47775181]
[1752789775317,36.57697984,176.15,176.13,8.47775181]
[1752789775518,30.22,176.15,176.13,8.47775181]
[1752789775724,0.06,176.16,176.15,8.47775181]
[1752789775927,0.06,176.16,176.15,17.76719665]
[1752789776430,0.06,176.16,176.15,18.45719665]
[1752789776589,0.06,176.16,176.15,17.76719665]
[1752789776995,0.06,176.16,176.15,35.24188062]
[1752789777195,0.06,176.16,176.15,44.53132546]
[1752789777410,0.06,176.16,176.15,50.2083053]
[1752789777610,0.06,176.16,176.15,40.91886046]
[1752789777913,0.06,176.21,176.2,25.26243578]
[1752789778112,0.06,176.21,176.2,17.76719665]
[1752789778529,0.06,176.21,176.2,18.33473353]
[1752789778816,0.06,176.21,176.2,35.8094175]
[1752789779235,0.06,176.21,176.2,17.76719665]
[1752789780223,0.06,176.21,176.2,18.45719665]
[1752789780404,0.06,176.21,176.2,17.76719665]
[1752789780809,0.06,176.21,176.2,8.47775181]
[1752789781012,40.20944484,176.21,176.18,8.47775181]
[1752789781203,9.96944484,176.2,176.16,8.47775181]
[1752789781414,30.24,176.21,176.18,8.47775181]
[1752789781595,0.06,176.21,176.2,8.47775181]
[1752789782130,0.74,176.21,176.2,8.47775181]
[1752789782421,0.06,176.23,176.22,51.26243578]
[1752789782635,0.06,176.23,176.22,61.11935309]
[1752789782829,0.06,176.23,176.22,61.80935309]
[1752789783119,0.06,176.23,176.22,35.04522428]
[1752789783326,0.06,176.23,176.22,17.76719665]
[1752789783825,0.06,176.23,176.22,40.79407786]
[1752789784009,0.06,176.23,176.22,41.48407786]
[1752789784803,0.06,176.23,176.22,32.19463302]
[1752789785129,0.06,176.23,176.22,41.48407786]
[1752789785316,0.06,176.23,176.22,17.76719665]
[1752789785529,0.06,176.23,176.22,40.91660539]
[1752789786595,0.06,176.23,176.22,14.15247658]
[1752789786830,0.06,176.23,176.22,34.55188062]
[1752789787128,0.06,176.23,176.22,40.91660539]
[1752789787830,0.06,176.24,176.22,40.91660539]
[1752789787831,0.06,176.24,176.23,25.26243578]
[1752789788006,0.06,176.24,176.23,35.80932089]
[1752789788804,1e-08,176.24,176.23,35.80932089]